bitfinex/quotes_ETHUSD_20220119
["timestamp","ask_amount","ask_price","bid_price","bid_amount"]
[1642614246743,0.00113685,3126.0,3125.8,3.7994324]
[1642614246945,1.32198749,3126.6,3125.8,3.7994324]
[1642614247141,1.32198749,3126.6,3125.9,1.32307034]
[1642614247342,0.00397896,3126.5,3125.9,1.32307034]
[1642614247543,1.32198749,3126.4,3125.8,3.7994324]
[1642614247788,1.32198749,3126.3,3125.8,3.7994324]
[1642614247991,1.32198749,3126.2,3125.8,3.7994324]
[1642614248190,1.32198749,3126.1,3125.8,3.7994324]
[1642614248391,0.00170527,3126.1,3125.9,1.32385043]
[1642614248594,0.00113685,3126.0,3125.9,1.32385043]
[1642614249394,0.00113685,3126.0,3125.8,3.7994324]
[1642614249594,0.00113685,3126.0,3125.9,1.32430948]
[1642614251406,0.00113685,3126.0,3125.6,0.00113685]
[1642614251648,1.32679247,3126.0,3125.6,0.00113685]
[1642614251847,1.32679247,3126.0,3125.5,0.00170527]
[1642614251848,1.32565562,3125.9,3125.5,0.00170527]
[1642614252046,9.17455562,3125.8,3125.6,0.00113685]
[1642614252246,9.17455562,3125.8,3125.0,1.36563556]
[1642614252247,3.72565562,3125.7,3125.0,1.37018295]
[1642614252449,2.4,3125.7,3125.1,1.36961453]
[1642614252646,2.4,3125.7,3125.2,1.36563556]
[1642614252846,2.4,3125.7,3125.3,1.36563556]
[1642614253047,1.28257738,3125.6,3125.3,0.00284212]
[1642614253448,1.28257738,3125.6,3125.1,1.36681245]
[1642614253648,1.28257738,3125.6,3125.1,1.37079142]
[1642614253846,1.28257738,3125.6,3125.2,1.37022299]
[1642614254050,1.28257738,3125.6,3125.2,0.00341054]
[1642614254247,1.28257738,3125.6,3125.3,0.00284212]
[1642614254546,1.28257738,3125.6,3124.9,0.00511581]
[1642614254747,1.28257738,3125.6,3125.0,1.36679168]
[1642614254946,1.28257738,3125.6,3125.0,1.66679168]
[1642614255146,1.28257738,3125.6,3125.1,0.00397897]
[1642614257891,1.28257738,3125.6,3125.2,1.36020392]
[1642614258093,1.28257738,3125.6,3125.1,0.00397897]
[1642614258293,1.28257738,3125.6,3125.3,0.00284212]
[1642614258494,1.28257738,3125.6,3125.2,0.3]
[1642614258695,1.28257738,3125.6,3125.3,0.00284212]
[1642614258894,2.28257738,3125.6,3125.3,0.00284212]
[1642614259149,0.80024,3125.3,3124.5,1.36767035]
[1642614259346,1.28257738,3125.2,3124.6,1.36710192]
[1642614259545,1.28257738,3125.2,3124.7,1.36028084]
[1642614259747,1.28257738,3125.2,3124.7,1.3665335]
[1642614259950,1.28257738,3125.2,3124.8,1.36596508]
[1642614260147,1.28257738,3125.2,3124.8,0.00568424]
[1642614260348,1.28257738,3125.2,3124.9,0.00511581]
[1642614260549,0.80018,3125.6,3125.0,1.36005923]
[1642614260751,1.28170288,3125.5,3124.8,0.00568424]
[1642614260949,1.28170288,3125.5,3125.1,0.00397897]
[1642614261148,1.28170288,3125.6,3125.0,1.10011]
[1642614261350,1.28170288,3125.4,3125.1,0.30397897]
[1642614261554,1.28170288,3125.3,3125.1,0.30397897]
[1642614261752,12.26855,3125.7,3125.2,0.00341054]
[1642614261951,1.28205473,3125.6,3125.2,0.00341054]
[1642614263694,1.28205473,3125.6,3125.2,1.36328129]
[1642614263894,1.28205473,3125.6,3125.2,1.96328129]
[1642614264197,1.28205473,3125.6,3125.3,0.00284212]
[1642614264999,1.28205473,3125.6,3125.2,1.96348332]
[1642614265200,1.28205473,3125.6,3125.3,1.3629149]
[1642614265798,1.28205473,3125.6,3125.3,0.00284212]
[1642614266835,1.28205473,3125.6,3125.2,2.46199539]
[1642614267042,1.28205473,3125.6,3125.3,0.00284212]
[1642614268038,1.28205473,3125.6,3125.2,1.96199418]
[1642614268240,1.28205473,3125.6,3125.3,0.00284212]
[1642614268843,7.8489,3125.8,3125.3,2.92379585]
[1642614269044,0.00113685,3126.0,3125.3,2.92379585]
[1642614269045,0.00113685,3126.0,3125.4,1.65868131]
[1642614269244,1.282066,3126.0,3125.5,5.19171962]
[1642614269446,0.00113685,3126.0,3125.6,1.35868131]
[1642614269648,0.00113685,3126.0,3125.6,2.65981816]
[1642614269844,0.00113685,3126.0,3125.7,1.35868131]
[1642614271292,0.00113685,3126.0,3125.7,2.15862131]
[1642614271493,0.00113685,3126.0,3125.8,0.6]
[1642614272296,0.00113685,3126.0,3125.6,0.60113685]
[1642614273294,0.00113685,3126.0,3125.7,1.35888836]
[1642614274141,0.00113685,3126.0,3125.6,1.40110685]
[1642614274639,0.00113685,3126.0,3125.7,1.3582688]
[1642614275542,0.00113685,3126.0,3125.6,1.40110685]
[1642614275743,0.00113685,3126.0,3125.7,1.35873514]
[1642614275941,0.00113685,3126.0,3125.6,1.40110685]
[1642614276140,0.00113685,3126.0,3125.6,0.80110685]
[1642614276341,0.00113685,3126.0,3125.6,1.60103615]
[1642614276541,0.00113685,3126.0,3125.7,2.15874082]
[1642614276742,0.00113685,3126.0,3125.6,1.60103615]
[1642614276939,0.00113685,3126.0,3125.7,1.35880104]
[1642614277342,0.00113685,3126.0,3125.7,1.65880104]
[1642614277545,0.00113685,3126.0,3125.8,1.35880104]
[1642614278595,0.00113685,3126.0,3125.8,2.95845104]
[1642614278795,0.00113685,3126.0,3125.9,1.35880104]
[1642614278997,1.28299972,3126.3,3125.9,1.65880104]
[1642614279196,1.18299972,3126.3,3126.0,1.35880104]
[1642614279395,0.00227369,3126.2,3126.0,1.65880104]
[1642614279596,0.00227369,3126.2,3126.0,0.3]
[1642614279795,0.00170527,3126.1,3125.9,1.39986]
[1642614280202,0.00113685,3126.0,3125.9,0.6]
[1642614280398,0.00113685,3126.0,3125.9,0.3]
[1642614280698,0.00113685,3126.0,3125.8,0.6]
[1642614283052,0.00113685,3126.0,3125.8,1.399794]
[1642614283254,0.00113685,3126.0,3125.8,3.799184]
[1642614283453,0.00113685,3126.0,3125.9,3.23482114]
[1642614283653,0.00113685,3126.0,3125.9,3.27563204]
[1642614283853,0.00113685,3126.0,3125.9,0.3]
[1642614290941,0.00113685,3126.0,3125.8,0.6]
[1642614293095,0.00113685,3126.0,3125.8,0.3]
[1642614295897,0.00113685,3126.0,3125.7,0.3]
[1642614296100,0.00113685,3126.0,3125.6,0.00113685]
[1642614296397,0.00113685,3126.0,3125.5,0.00170527]
[1642614296846,1.47686738,3126.0,3125.3,0.00284212]
[1642614297648,0.8001,3125.9,3125.3,0.00284212]
[1642614297849,0.00113685,3126.0,3125.3,0.00284212]
[1642614298051,0.00113685,3126.0,3125.3,3.76508086]
[1642614298251,0.00113685,3126.0,3125.4,0.3]
[1642614298448,0.00113685,3126.0,3125.4,1.3]
[1642614298648,0.00113685,3126.0,3125.5,0.30170527]
[1642614299051,0.00113685,3126.0,3125.6,0.00113685]
[1642614303122,0.80119685,3126.0,3125.6,0.00113685]
[1642614303324,1.3228367,3125.9,3125.6,0.00113685]
[1642614303521,1.3228367,3125.8,3125.6,0.00113685]
[1642614303720,0.80119685,3126.0,3125.5,0.00170527]
[1642614303920,1.30190666,3125.8,3125.6,0.00113685]
[1642614304146,1.30190666,3125.8,3125.0,1.31834885]
[1642614304147,1.32106756,3125.7,3125.0,1.31834885]
[1642614304347,1.34139879,3125.4,3125.1,1.31778043]
[1642614304550,1.34139879,3125.4,3124.5,0.1279]
[1642614304551,5.7,3125.1,3124.5,0.1279]
[1642614304749,1.32106756,3125.0,3124.6,1.31412256]
[1642614304949,1.32106756,3125.0,3124.6,0.00284211]
[1642614305147,1.10482666,3124.9,3124.6,0.00284211]
[1642614305348,1.276528,3124.8,3124.6,0.00284211]
[1642614305951,8.780428,3124.8,3124.6,0.00284211]
[1642614306548,7.5039,3124.8,3124.6,0.00284211]
[1642614306949,6.75,3124.7,3124.6,0.00284211]
[1642614307889,6.88483,3124.7,3124.6,0.00284211]
[1642614308494,8.0184649,3124.7,3124.6,0.00284211]
[1642614308696,8.03088698,3124.7,3124.5,0.1279]
[1642614308895,6.55057,3124.6,3124.5,0.1279]
[1642614309094,7.55057,3124.6,3124.5,0.1279]
[1642614309294,8.7382954,3124.6,3124.5,0.1279]
[1642614309495,9.9260208,3124.6,3124.5,0.1279]
[1642614309796,9.9260208,3124.6,3123.6,2.0]
[1642614309797,10.6478508,3124.6,3123.6,2.0]
[1642614309996,1.0,3124.5,3123.6,2.3]
[1642614310196,19.49067,3124.3,3123.7,0.00511581]
[1642614310597,0.80067,3124.3,3123.7,0.00511581]
[1642614311000,1.80067,3124.3,3123.7,0.00511581]
[1642614311397,1.23061124,3124.1,3123.7,0.00511581]
[1642614311641,0.80067,3124.0,3123.7,0.00511581]
[1642614311842,2.35867,3124.0,3123.7,0.00511581]
[1642614312042,3.35867,3124.0,3123.7,0.00511581]
[1642614312240,2.35867,3124.0,3123.7,0.00511581]
[1642614312640,2.35867,3124.0,3123.6,1.95511581]
[1642614312840,2.35867,3124.0,3123.6,2.25511581]
[1642614312841,0.00113685,3123.9,3123.6,2.25511581]
[1642614314645,1.1877254,3123.8,3123.6,2.25511581]
[1642614314845,2.3754508,3123.8,3123.6,2.25511581]
[1642614316302,6.60065,3123.7,3123.6,1.95511581]
[1642614316504,9.63840459,3123.7,3123.6,1.95511581]
[1642614316701,6.60065,3123.7,3123.6,1.95511581]
[1642614317101,9.59477879,3123.7,3123.6,1.95511581]
[1642614317302,9.59477879,3123.7,3122.7,3.2024203]
[1642614317502,18.94434439,3123.7,3122.8,0.3]
[1642614317700,18.94434439,3123.7,3122.8,0.30511582]
[1642614317903,14.42755,3123.7,3122.8,0.30511582]
[1642614318803,4.41597305,3123.6,3122.8,0.30511582]
[1642614319058,0.80072,3123.4,3122.8,0.30511582]
[1642614319449,2.15619216,3123.4,3122.8,0.30511582]
[1642614319850,1.1877254,3123.1,3122.8,0.30511582]
[1642614320049,2.3754508,3123.1,3122.8,0.00511582]
[1642614320449,3.1762708,3123.1,3122.6,2.48661374]
[1642614320650,0.00170527,3123.0,3122.6,2.48661374]
[1642614321051,0.00113685,3122.9,3122.6,2.48661374]
[1642614321458,0.00170527,3123.0,3122.6,2.78661374]
[1642614321852,0.80088,3122.8,3122.6,2.78661374]
[1642614322790,0.80088,3122.8,3122.6,2.48661374]
[1642614323999,0.80088,3122.8,3122.6,1.19629163]
[1642614324000,8.74890662,3122.7,3122.6,1.19629163]
[1642614324201,0.80112,3122.3,3121.2,5.44633]
[1642614324398,0.80112,3122.3,3121.2,3.8443]
[1642614324399,1.62532,3122.3,3121.2,3.8443]
[1642614324597,2.55,3122.2,3121.2,3.8391472]
[1642614324797,2.55,3122.2,3121.3,1.17044219]
[1642614324998,0.00397896,3122.1,3121.2,1.39486278]
[1642614325200,1.1877254,3121.6,3121.3,1.17043755]
[1642614325400,1.1877254,3121.6,3121.4,0.80095]
[1642614325598,1.1877254,3121.6,3121.5,6.97043755]
[1642614325599,0.07580479,3121.6,3121.5,6.97043755]
[1642614325800,0.00341054,3122.0,3121.6,5.8]
[1642614326001,7.4627,3122.7,3121.7,1.77043755]
[1642614326200,7.4627,3122.7,3122.4,1.15296124]
[1642614326400,7.4627,3122.7,3122.4,0.80071]
[1642614326401,0.00682108,3122.6,3122.4,0.80071]
[1642614326872,5.5783,3123.2,3122.4,1.10071]
[1642614326873,0.00625265,3122.5,3122.4,1.10071]
[1642614327074,0.00625265,3122.5,3122.4,1.40071]
[1642614327477,0.00625265,3122.5,3122.4,8.3289171]
[1642614327676,3.06871106,3123.8,3122.7,0.80059]
[1642614327876,0.078,3123.8,3123.2,1.37362359]
[1642614328074,0.078,3123.8,3123.1,1.1026813]
[1642614328075,0.00682109,3123.7,3123.1,1.1026813]
[1642614328575,0.80694266,3123.6,3122.6,1.2314]
[1642614328777,0.80694266,3123.6,3122.8,0.3]
[1642614328974,3.10515871,3123.7,3122.6,1.5314]
[1642614328975,0.00568424,3123.5,3122.6,1.5314]
[1642614329179,0.00568424,3123.5,3122.7,0.80071]
[1642614329376,0.00511582,3123.4,3122.7,0.80071]
[1642614329775,0.00454739,3123.3,3122.7,0.80071]
[1642614330175,0.00397897,3123.2,3122.8,1.0949399]
[1642614330394,0.00397897,3123.2,3122.8,1.8955493]
[1642614330599,1.078,3123.8,3122.8,1.8955493]
[1642614330600,0.00341054,3123.1,3122.8,3.4967593]
[1642614331002,0.00284212,3123.0,3122.9,0.3]
[1642614332803,0.00284212,3123.0,3122.9,7.05]
[1642614333402,1.1877254,3123.3,3123.0,5.8]
[1642614333703,0.02303196,3123.3,3123.2,5.82588]
[1642614333901,0.02303196,3123.3,3123.2,7.98731796]
[1642614333902,3.196e-05,3123.3,3123.2,7.98731796]
[1642614334146,0.078,3123.8,3123.3,5.8]
[1642614334353,2.94071106,3124.6,3123.4,0.8262087]
[1642614334550,13.0674,3124.7,3124.0,1.37248016]
[1642614334748,13.0674,3124.7,3124.0,4.87136945]
[1642614334949,0.00738951,3124.6,3124.0,5.17136945]
[1642614335149,0.00738951,3124.6,3124.0,3.79888929]
[1642614335353,0.00682108,3124.5,3124.0,3.79888929]
[1642614335750,0.00625266,3124.4,3124.0,3.79888929]
[1642614335952,0.00625266,3124.4,3124.0,2.41285]
[1642614336151,0.00568424,3124.3,3124.0,2.41285]
[1642614336551,0.00511581,3124.2,3124.0,2.41285]
[1642614336955,0.00454739,3124.1,3124.0,2.41285]
[1642614337155,0.00454739,3124.1,3124.0,5.61285]
[1642614337352,0.00454739,3124.1,3124.0,2.41285]
[1642614337554,0.00454739,3124.1,3124.0,3.41285]
[1642614337825,0.00454739,3124.1,3124.0,2.41285]
[1642614338212,0.00454739,3124.1,3124.0,3.41285]
[1642614338411,0.00454739,3124.1,3124.0,2.6125]
[1642614338817,0.00454739,3124.1,3124.0,5.55252295]
[1642614339219,0.00454739,3124.1,3124.0,8.52274418]
[1642614339622,0.00454739,3124.1,3124.0,8.54862418]
[1642614339821,12.52778786,3125.6,3124.0,10.25362418]
[1642614340018,7.2209,3125.6,3124.4,0.80001]
[1642614340218,7.2209,3125.6,3124.7,0.8]
[1642614340219,0.0073895,3125.4,3124.7,0.8]
[1642614340622,0.00682108,3125.3,3124.7,0.6]
[1642614341018,7.2209,3125.6,3124.7,0.6]
[1642614341019,0.00625266,3125.2,3124.7,0.6]
[1642614341420,0.00568423,3125.1,3124.7,0.6]
[1642614341853,0.00511581,3125.0,3124.7,0.6]
[1642614342050,0.00511581,3125.0,3124.7,2.19999]
[1642614342258,0.00454739,3124.9,3124.7,2.19999]
[1642614342453,0.00454739,3124.9,3124.7,0.6]
[1642614342654,0.00397896,3124.8,3124.4,2.7969]
[1642614343154,0.00341054,3124.7,3124.4,2.82278]
[1642614343353,0.00341054,3124.7,3124.6,1.60024]
[1642614343554,7.2209,3125.6,3124.6,1.90024]
[1642614343752,1.4928651,3125.5,3124.6,1.90024]
[1642614343953,0.0073895,3125.4,3124.7,0.3]
[1642614344359,0.00682108,3125.3,3124.7,0.3]
[1642614344767,0.00625266,3125.2,3124.8,0.80012]
[1642614345063,7.2209,3125.6,3124.9,4.37988307]
[1642614345064,0.00568423,3125.1,3124.9,4.37988307]
[1642614345306,0.00568423,3125.1,3125.0,1.59995]
[1642614345507,12.8069,3126.1,3125.0,10.5390476]
[1642614345712,1.50280496,3126.0,3125.1,0.3]
[1642614345911,1.51360501,3126.0,3125.3,1.11729644]
[1642614346117,1.50280496,3125.9,3125.4,1.20557355]
[1642614346510,0.0096632,3125.8,3125.4,2.80539355]
[1642614346910,0.00909477,3125.7,3125.4,2.80539355]
[1642614347313,7.429,3126.1,3125.4,2.00547355]
[1642614347314,0.00852635,3125.6,3125.4,2.00547355]
[1642614347712,0.00795793,3125.5,3125.4,2.00547355]
[1642614348111,0.00795793,3125.5,3125.4,5.10547355]
[1642614348714,0.00795793,3125.5,3125.4,0.7999]
[1642614349561,0.00795793,3125.5,3125.4,4.2999]
[1642614349760,0.00795793,3125.5,3125.4,5.66865202]
[1642614349964,0.00795793,3125.5,3125.4,5.64277202]
[1642614350765,0.00795793,3125.5,3125.4,4.84287202]
[1642614351365,0.00795793,3125.5,3125.4,3.5]
[1642614352662,0.00795793,3125.5,3125.4,3.52588]
[1642614353304,0.00795793,3125.5,3125.4,1.0]
[1642614353704,0.00795793,3125.5,3125.1,0.02588]
[1642614353905,0.00795793,3125.5,3125.1,2.9696702]
[1642614354106,0.0073895,3125.4,3125.2,1.0]
[1642614354305,0.0073895,3125.4,3125.2,1.7883]
[1642614354505,0.00682108,3125.3,3125.2,1.7883]
[1642614354905,0.00682108,3125.3,3125.2,3.1883]
[1642614355110,0.00682108,3125.3,3125.2,3.4]
[1642614355306,0.00682108,3125.3,3125.2,2.4]
[1642614355707,0.00682108,3125.3,3124.9,2.21768582]
[1642614356109,0.02588352,3125.7,3124.9,2.51768582]
[1642614356110,0.00625266,3125.2,3124.9,2.51768582]
[1642614356306,0.00625266,3125.2,3125.1,5.7757]
[1642614356562,0.02588352,3125.7,3125.1,7.3757]
[1642614357064,0.00852635,3125.6,3125.4,1.13703578]
[1642614357261,0.00852635,3125.6,3125.5,8.00127954]
[1642614357458,0.02588352,3125.7,3125.5,8.00127954]
[1642614357663,0.02588352,3125.7,3125.6,7.01974031]
[1642614357862,0.02588352,3125.7,3125.6,8.01974031]
[1642614358059,7.5344,3126.7,3125.6,8.31974031]
[1642614358260,7.5344,3126.7,3126.1,1.48982047]
[1642614358560,0.00511582,3126.6,3125.8,3.03197411]
[1642614358759,0.00511582,3126.6,3125.8,4.03197411]
[1642614358960,0.00454739,3126.5,3125.8,3.03197411]
[1642614359160,0.00454739,3126.5,3125.7,0.0257]
[1642614359161,0.00454739,3126.5,3125.7,2.87624062]
[1642614359359,0.00397897,3126.4,3125.7,2.93206309]
[1642614359559,0.00397897,3126.4,3125.8,1.0]
[1642614359760,0.00341055,3126.3,3125.8,1.0]
[1642614360163,0.00284212,3126.2,3125.8,1.0]
[1642614360612,0.0022737,3126.1,3125.9,2.86437572]
[1642614360814,0.0022737,3126.1,3126.0,6.7757]
[1642614361114,0.01201066,3127.6,3126.0,6.7757]
[1642614361115,7.9094,3127.6,3126.0,26.6526]
[1642614361315,7.9094,3127.6,3126.1,21.7409286]
[1642614361515,0.01023163,3127.5,3126.1,3.0509286]
[1642614361714,0.01023163,3127.5,3126.3,1.26514716]
[1642614361915,7.9094,3127.6,3126.3,1.72414716]
[1642614361916,0.0096632,3127.4,3126.3,1.72414716]
[1642614362116,0.0096632,3127.4,3126.3,1.0]
[1642614362316,0.00909478,3127.3,3126.3,1.0]
[1642614362518,0.00909478,3127.3,3126.2,0.0257]
[1642614362720,0.00852636,3127.2,3126.2,0.0257]
[1642614363119,0.00795793,3127.1,3126.2,0.0257]
[1642614363320,3.7,3127.0,3126.1,3.83526072]
[1642614363521,0.00738951,3127.0,3126.1,3.80627175]
[1642614363724,0.00682109,3126.9,3126.1,3.80627175]
[1642614364163,8.2094,3127.6,3126.1,3.813694]
[1642614364164,0.00625266,3126.8,3126.1,3.813694]
[1642614364563,0.00568424,3126.7,3126.1,3.813694]
[1642614364761,0.00568424,3126.7,3126.1,3.93009714]
[1642614364962,1.55447582,3127.5,3126.2,4.95]
[1642614365164,0.75478582,3127.5,3126.3,3.14191167]
[1642614365366,0.00397896,3127.3,3126.3,4.14191167]
[1642614365561,0.00397896,3127.3,3126.4,1.00113685]
[1642614365763,0.00397896,3127.3,3126.4,0.00113685]
[1642614365764,0.00341054,3127.2,3126.4,0.00113685]
[1642614365965,4.32566169,3127.2,3126.4,0.00113685]
[1642614366163,1.60254211,3127.1,3126.4,0.00113685]
[1642614366561,3.52250115,3127.2,3126.1,0.00284212]
[1642614366562,0.00227369,3127.0,3126.1,0.00284212]
[1642614366766,0.00227369,3127.0,3126.4,1.09928235]
[1642614366967,0.00170527,3126.9,3126.4,1.09928235]
[1642614367366,0.00113684,3126.8,3126.5,19.149]
[1642614367567,0.00113684,3126.8,3126.6,0.1279]
[1642614367812,7.5852,3128.2,3126.6,1.38631]
[1642614367813,0.0073895,3127.9,3126.6,1.38631]
[1642614368005,0.0073895,3127.9,3126.9,2.66465554]
[1642614368208,0.00682108,3127.8,3127.0,1.0]
[1642614368607,0.00625265,3127.7,3127.0,1.0]
[1642614369108,0.00568423,3127.6,3126.7,1.0]
[1642614369509,0.00511581,3127.5,3126.7,1.0]
[1642614369809,0.00454738,3127.4,3126.8,2.75639527]
[1642614370012,0.00454738,3127.4,3126.9,1.0]
[1642614370213,1.1475,3129.1,3127.0,18.8179]
[1642614370214,0.00852635,3128.1,3127.0,18.8179]
[1642614370412,0.00852635,3128.1,3127.3,0.79915]
[1642614370614,0.00795792,3128.0,3127.4,19.149]
[1642614370812,0.00795792,3128.0,3127.5,0.1278]
[1642614371010,8.95e-05,3127.9,3127.6,1.32265632]
[1642614371211,8.95e-05,3127.9,3127.7,0.1278]
[1642614371414,1.59819,3130.1,3127.8,0.459]
[1642614371415,0.00520531,3128.8,3127.8,0.459]
[1642614371666,0.00520531,3128.8,3127.9,18.8178]
[1642614371866,0.00463689,3128.7,3128.0,0.459]
[1642614372065,0.00463689,3128.7,3128.3,1.17435282]
[1642614372265,2.9230286,3129.5,3128.4,2.50746882]
[1642614372266,0.00406847,3128.6,3128.4,2.50746882]
[1642614372465,2.9230286,3129.5,3128.4,2.50746882]
[1642614372466,2.9230286,3129.5,3128.4,2.80746882]
[1642614372665,7.8213,3129.6,3128.5,6.5]
[1642614372873,0.00454738,3129.4,3128.5,6.959]
[1642614373076,0.00454738,3129.4,3128.6,0.1278]
[1642614373277,0.00397896,3129.3,3128.7,0.7989167]
[1642614373672,0.00341054,3129.2,3128.8,3.26170664]
[1642614373875,0.00341054,3129.2,3128.8,3.72070664]
[1642614374071,0.83712462,3130.6,3128.9,1.0]
[1642614374072,0.00284211,3129.1,3128.9,1.0]
[1642614374276,0.00284211,3129.1,3128.9,1.459]
[1642614374574,1.53419073,3130.0,3128.6,3.6663]
[1642614374575,0.00227369,3129.0,3128.6,3.6663]
[1642614374772,0.00227369,3129.0,3128.4,1.2574]
[1642614374974,0.00170527,3128.9,3128.4,0.1278]
[1642614375413,0.0120102,3129.4,3128.4,0.1278]
[1642614375414,0.00113684,3128.8,3128.4,0.1278]
[1642614375715,1.10754379,3129.1,3128.4,0.1278]
[1642614376018,0.00227369,3129.0,3128.4,0.1278]
[1642614376412,0.00170527,3128.9,3128.4,0.1278]
[1642614376614,0.00170527,3128.9,3128.3,0.13562399]
[1642614376820,0.00113684,3128.8,3128.3,0.13562399]
[1642614377018,0.00113684,3128.8,3128.4,0.00113685]
[1642614377218,1.10754379,3129.1,3128.4,0.00113685]
[1642614377219,0.00227369,3129.0,3128.4,0.00113685]
[1642614377520,1.10754379,3129.1,3128.4,0.00113685]
[1642614377521,0.00170527,3128.9,3128.4,0.00113685]
[1642614377919,0.00113684,3128.8,3128.4,0.00113685]
[1642614378919,0.00113684,3128.8,3128.4,0.12893685]
[1642614379562,0.00113684,3128.8,3128.7,7.1096781]
[1642614379762,0.00113684,3128.8,3128.7,11.2813609]
[1642614379962,0.00113684,3128.8,3128.7,12.7403609]
[1642614380562,0.00113684,3128.8,3128.7,30.8694728]
[1642614380563,3.684e-05,3128.8,3128.7,30.8694728]
[1642614380767,3.684e-05,3128.8,3128.7,30.9934728]
[1642614380965,0.02597661,3131.1,3129.2,0.7986881]
[1642614380966,0.03823462,3130.6,3129.2,0.7986881]
[1642614381174,0.03823462,3130.6,3128.8,5.75]
[1642614381175,0.03823462,3130.6,3129.3,25.88755834]
[1642614381367,0.00795793,3130.2,3129.4,0.47144425]
[1642614381565,0.00795793,3130.2,3130.1,6.38136757]
[1642614381764,0.03823462,3130.6,3130.1,7.28906757]
[1642614381963,0.03823462,3130.6,3130.2,3.09240585]
[1642614382167,0.02387443,3131.1,3130.3,1.0]
[1642614382368,2.44783824,3132.5,3130.5,5.75]
[1642614382569,0.00284212,3131.0,3130.9,5.76203607]
[1642614382818,0.00284212,3131.0,3130.9,6.35666006]
[1642614383021,0.00284212,3131.0,3130.9,7.95666006]
[1642614383222,0.00284212,3131.0,3130.9,8.75488006]
[1642614383422,4.212e-05,3131.0,3130.9,11.98660866]
[1642614383622,0.13483,3133.5,3131.0,6.54812]
[1642614383827,1.4465155,3133.4,3132.3,1.17581621]
[1642614384022,24.59311126,3133.7,3132.3,1.0382]
[1642614384023,0.00909477,3132.6,3132.3,1.0382]
[1642614384222,0.00909477,3132.6,3132.4,0.459]
[1642614384425,1.61375351,3134.4,3132.4,0.459]
[1642614384426,2.635e-05,3132.5,3132.4,0.459]
[1642614384626,2.635e-05,3132.5,3132.4,15.56089798]
[1642614384826,7.7661,3134.7,3132.7,1.5954326]
[1642614385026,1.44381726,3134.6,3132.8,3.6820286]
[1642614385224,0.0096632,3134.2,3132.8,3.9820286]
[1642614385426,0.0096632,3134.2,3133.6,1.28488983]
[1642614385627,0.00909478,3134.1,3133.6,1.3669]
[1642614385827,1.47420206,3134.1,3133.6,1.3669]
[1642614386028,0.00852635,3134.0,3133.6,0.9079]
[1642614386429,0.00795793,3133.9,3133.6,0.9079]
[1642614386873,0.00738951,3133.8,3133.6,0.9079]
[1642614387076,0.00738951,3133.8,3132.5,0.5865]
[1642614387273,0.00682108,3133.7,3132.1,0.459]
[1642614387478,1.24999787,3133.7,3132.2,1.51867962]
[1642614387673,0.00625266,3133.6,3132.2,0.00170527]
[1642614387872,1.08951393,3133.2,3132.3,0.00113685]
[1642614388074,1.08951393,3133.2,3132.2,0.00170527]
[1642614388275,0.00341054,3133.1,3132.2,0.00170527]
[1642614388474,1.38951393,3133.2,3132.1,0.00227369]
[1642614388475,1.34292447,3133.2,3132.1,0.00227369]
[1642614388673,1.49476089,3132.6,3131.9,0.00341054]
[1642614388875,1.49476089,3132.6,3131.5,0.00909477]
[1642614389075,0.79824,3133.0,3131.4,0.0096632]
[1642614389076,1.1450141,3132.4,3131.4,0.0096632]
[1642614389278,0.79824,3133.0,3131.3,0.01023162]
[1642614389677,7.4288,3133.1,3131.3,0.13343162]
[1642614389875,7.4288,3133.1,3131.3,0.13023162]
[1642614390077,1.22162887,3132.6,3131.4,0.0096632]
[1642614390638,1.22162887,3132.6,3131.5,0.00909477]
[1642614390839,7.18,3133.1,3131.5,0.00909477]
[1642614391041,7.18,3133.1,3131.3,0.14143162]
[1642614391244,7.18,3133.1,3131.3,0.14383162]
[1642614391445,7.18,3133.1,3131.7,0.0122984]
[1642614391844,9.91522428,3133.1,3131.8,1.11864809]
[1642614392044,9.91522428,3133.1,3131.8,1.41864809]
[1642614392244,9.91522428,3133.1,3131.9,0.00682108]
[1642614392847,8.59103755,3133.1,3131.9,0.00682108]
[1642614393047,7.18,3133.1,3131.9,0.00682108]
[1642614394065,7.18,3133.1,3132.3,1.46435978]
[1642614394273,7.18,3133.1,3132.3,2.62085978]
[1642614394472,7.18,3133.1,3132.4,0.00397896]
[1642614394668,7.18,3133.1,3132.4,19.69397896]
[1642614394871,7.18,3133.1,3132.4,1.00397896]
[1642614395070,7.18,3133.1,3132.5,0.00341054]
[1642614395470,7.18,3133.1,3132.4,0.80184726]
[1642614395671,2.90743848,3134.0,3132.5,19.78728445]
[1642614395871,2.90743848,3134.0,3132.7,1.16985418]
[1642614395872,1.31299532,3134.0,3132.7,1.16985418]
[1642614396078,0.00454739,3133.9,3132.7,1.16985418]
[1642614396270,0.00454739,3133.9,3132.8,0.00170527]
[1642614396471,0.00397897,3133.8,3132.8,0.00170527]
[1642614396671,0.00397897,3133.8,3132.7,0.00227369]
[1642614396672,0.79807,3133.7,3132.7,0.00227369]
[1642614396876,0.80148054,3133.7,3132.7,0.00227369]
[1642614397072,0.80092212,3133.6,3132.6,0.30284212]
[1642614397274,0.00284212,3133.6,3132.7,0.00227369]
[1642614397472,1.31299532,3134.0,3132.7,19.63017369]
[1642614397473,0.00227369,3133.5,3132.7,19.63017369]
[1642614397671,0.00227369,3133.5,3132.8,1.0]
[1642614397919,1.1092832,3133.9,3132.8,1.00170527]
[1642614397920,0.00170527,3133.4,3132.8,1.00170527]
[1642614398126,0.00170527,3133.4,3132.9,0.00113685]
[1642614398323,1.1092832,3133.9,3132.9,0.00113685]
[1642614398324,0.00113685,3133.3,3132.9,0.00113685]
[1642614398727,0.00397897,3133.8,3132.7,0.00227369]
[1642614398928,0.00397897,3133.8,3132.2,0.00511581]
[1642614399125,0.46241054,3133.7,3132.2,0.00511581]
[1642614399325,3.8848505,3133.6,3132.2,0.00511581]
[1642614399531,1.11771343,3132.8,3132.2,0.00511581]
[1642614399725,4.64669262,3133.6,3132.2,0.00511581]
[1642614399726,0.79819,3133.2,3132.2,0.00511581]
[1642614399927,1.59864369,3133.5,3132.2,0.00511581]
[1642614399928,0.00227369,3133.5,3132.2,0.00511581]
[1642614400129,0.00227369,3133.5,3132.2,18.69]
[1642614400326,0.00170527,3133.4,3132.2,0.30511581]
[1642614400527,0.00170527,3133.4,3132.3,0.30454739]
[1642614400826,0.3,3133.8,3132.4,0.00397896]
[1642614400827,1.2679241,3133.2,3132.4,0.00397896]
[1642614401226,1.2679241,3133.2,3132.1,1.3]
[1642614401227,1.2679241,3133.2,3132.2,0.00511581]